Cogmind - Beta 16 @@@ ROGUE MODE // 2025.10.27 @ 12:20:26 Player: Mathewnd Result: Smashed by cave-in Performance ------------- Evolutions (0) 0 Regions Visited (2) 400 Robots Destroyed (32) 160 Value Destroyed (806) 806 Prototype IDs (1) 20 Alien Tech Used (0) 0 Bonus (-30) -30 TOTAL SCORE: 1356 Bonus ------- Friendly Fire -30 Cogmind --------- Core Integrity 0/250 Matter 235/300 Energy 123/125 System Corruption 8% Temperature Cool (1) Movement Core (400) Ox7 Location -10/Subcaves Parts ------- > --- POWER (1) -------- Light Ion Engine > --- PROPULSION (2) --- (None) > --- UTILITY (2) ------ Scrap Shield > --- WEAPON (2) ------- Improved Medium Laser > --- INVENTORY (5) ---- Heat Sink Hacking Suite Light Assault Rifle Grenade Launcher Peak State ------------ > --- POWER ------------ Light Nuclear Core > --- PROPULSION ------- Light Treads Light Treads > --- UTILITY ---------- Heat Sink Core Shielding > --- WEAPON ----------- Improved Medium Laser Improved Medium Laser > --- INVENTORY -------- Light Ion Engine Light Treads Improved Medium Laser Light Assault Rifle Grenade Launcher [Rating: 13] Favorites ----------- Power Light Ion Engine Engine Light Ion Engine Power Core Light Nuclear Core Propulsion Light Treads Treads Light Treads Utility Scrap Shield Device Heat Sink Storage Small Storage Unit Protection Scrap Shield Weapon Improved Medium Laser Energy Gun Improved Medium Laser Ballistic Gun Light Assault Rifle Ballistic Cannon Battle Cannon Launcher Grenade Launcher Build | -11 -10 -10 ------- Run | Yrd Mat Sub Slots Evolved . | . . . Power . | . . . Propulsion . | . . . Utility . | . . . Weapon . | . . . Parts Attached 17 | 6 6 5 Power 3 | 1 1 1 Engine 2 | 1 . 1 Core 1 | . 1 . Reactor . | . . . Propulsion 3 | 2 . 1 Treads 3 | 2 . 1 Leg . | . . . Wheel . | . . . Hover . | . . . Flight . | . . . Utility 4 | 1 2 1 Device 1 | . 1 . Storage 1 | 1 . . Processor . | . . . Hackware . | . . . Protection 2 | . 1 1 Artifact . | . . . Weapon 7 | 2 3 2 Energy Gun 3 | . 3 . Energy Cannon . | . . . Ballistic Gun 2 | 2 . . Ballistic Cannon 1 | . . 1 Launcher 1 | . . 1 Special Weapon . | . . . Impact Weapon . | . . . Slashing Weapon . | . . . Piercing Weapon . | . . . Special Melee Weapon . | . . . Unidentified Prototypes 1 | . 1 . Parts Lost 6 | . 1 5 Power 1 | . . 1 Propulsion 3 | . . 3 Utility . | . . . Weapon 2 | . 1 1 Highest Loss Streak 2 | . 1 2 To Critical Strikes . | . . . Average Backups 4 | 1 5 4 Power . | . 1 . Propulsion . | 1 1 . Utility 1 | . . 1 Weapon 2 | . 2 2 Tool/Special . | . . . Unused Backups 6 | . 4 2 Power 1 | . 1 . Propulsion 2 | . 2 . Utility 1 | . . 1 Weapon 2 | . 1 1 Tool/Special . | . . . Average Slot Usage (%) 87 | . 95 81 Engine 10 | . 7 12 Core 3 | . 6 1 Treads 24 | . 28 21 Device 6 | . 10 2 Storage 2 | . 5 . Protection 11 | . 8 14 Energy Gun 19 | . 21 18 Ballistic Gun 2 | . 6 . Ballistic Cannon 5 | . . 9 Peak Build Rating 13 | 6 13 13 Average Rating 11 | 4 10 11 On Entrance 6 | . 6 13 Avg Prop Armor Cover (%) . | . . . Naked Turns . | . . . Heaviest Build 27 | 11 15 27 Greatest Support 40 | 40 40 40 Greatest Overweight (x) 1 | . . 1 Average Overweight (x) . | . . . Largest Inventory Capacity 8 | 8 8 5 Average Capacity 5 | 7 6 5 Most Carried 8 | 3 8 5 Average Carried 4 | 2 5 4 Final Capacity 8 | 8 5 5 Final Carried 5 | 3 5 4 Class Distribution -------------------- 100% | Mutant Dominant Class ---------------- Mutant | -10/Materials Mutant | -10/Subcaves Resources | -11 -10 -10 ----------- Run | Yrd Mat Sub Matter Collected 653 | 256 192 205 Remotely . | . . . Salvage Created 1089 | . 726 363 Parts 60 | . 44 16 Haulers Intercepted . | . . . Recyclers Shooed . | . . . Parts Field Recycled . | . . . Retrieved Matter . | . . . Parts Self-Destructed 19 | . . 19 Prevented . | . . . Parts Restored . | . . . Kills | -11 -10 -10 ------- Run | Yrd Mat Sub Combat Hostiles Destroyed 23 | . 12 11 Guns 19 | . 12 7 Cannons 4 | . . 4 Classes Destroyed 7 | . 6 1 Builder 1 | . 1 . Recycler 2 | . 2 . Operator 3 | . 3 . Watcher 3 | . 3 . Swarmer 7 | . 3 4 Grunt 11 | . 9 2 Subdweller 5 | . . 5 Best Kill Streak 3 | . 3 2 Combat Bots Only 3 | . 3 2 Max Kills in Single Turn 1 | . 1 1 Gunslinging . | . . . Exploded . | . . . Melee . | . . . Uniques/NPCs Destroyed . | . . . Combat | -11 -10 -10 -------- Run | Yrd Mat Sub Hostile Shots Fired 166 | . 65 101 Missed 57 | . 16 41 Hits 109 | . 49 60 Projectile 109 | . 49 60 Damage Taken 1420 | . 583 837 Core 251 | . 89 162 Absorbed by Shields . | . . . Redirected to Shielding 7 | . 7 . Regen/Repaired (Parts) 82 | . 82 . Core Remaining (%) 100 | 100 . . Volleys Fired 115 | . 69 46 Largest 2 | . 2 2 Hottest 112 | . 112 112 Shots Fired 220 | . 134 86 Gun 185 | . 134 51 Cannon 29 | . . 29 Launcher 6 | . . 6 Special . | . . . Kinetic 93 | . 64 29 Thermal 121 | . 70 51 Explosive 6 | . . 6 Electromagnetic . | . . . Robot Hit Streak 8 | . 8 8 Robot Miss Streak 4 | . 4 4 Penetration Max . | . . . Secondary Targets 1 | . 1 . Max Gunslinging Chain 1 | . 1 . Shots Hit Robots 119 | . 80 39 Core Hits 48 | . 29 19 Critical Kills . | . . . Critical Parts Destroyed 1 | . 1 . Critical Strikes 7 | . 3 4 Burn 6 | . 2 4 Destroy 1 | . 1 . Melee Attacks . | . . . Impact . | . . . Slashing . | . . . Piercing . | . . . Sneak Attacks . | . . . Combat Hostiles . | . . . Follow-up Attacks . | . . . Damage Inflicted 1839 | . 1101 738 Guns 1566 | . 1100 466 Cannons 272 | . . 272 Explosions . | . . . Melee . | . . . Ramming 1 | . 1 . Kinetic 654 | . 382 272 Thermal 1184 | . 718 466 Explosive . | . . . Electromagnetic . | . . . Impact . | . . . Slashing . | . . . Piercing . | . . . Highest Corruption . | . . . Average Corruption . | . . . Corruption Purged . | . . . Corruption Blocked . | . . . Overload Shots . | . . . Overflow Damage . | . . . Projectiles . | . . . Explosions . | . . . Melee . | . . . Knockbacks 3 | . . 3 Impact . | . . . Kinetic 3 | . . 3 Secondary . | . . . Self-Inflicted Damage . | . . . Shots . | . . . Rammed 1 | . 1 . Targets Rammed 1 | . 1 . Kicked . | . . . Crushed . | . . . Highest Temperature 362 | . 362 8 Average Temperature 90 | . 91 4 Received Heat Transfer 384 | . 279 105 Effects 1 | . 1 . Shutdowns 1 | . 1 . Siege Activations . | . . . Martial Activations . | . . . Shielding Activations . | . . . Robots Disrupted . | . . . Combat Hostiles . | . . . Robots Corrupted . | . . . Combat Hostiles . | . . . Parts Fried . | . . . Impact Corruptions . | . . . Robots Melted . | . . . Combat Hostiles . | . . . Parts Melted 7 | . 5 2 Heat Transferred 2997 | . 1702 1295 Parts Sabotaged . | . . . Parts Stolen . | . . . Parts Stripped . | . . . Power Chain Reactions . | . . . Alert | -11 -10 -10 ------- Run | Yrd Mat Sub Maximum Alert Level . | . . . Low Security (%) 100 | 100 100 . Level 1 . | . . . Level 2 . | . . . Level 3 . | . . . Level 4 . | . . . Level 5 . | . . . High Security . | . . . Max Security . | . . . Peak Influence 131 | . 131 . Initial . | . . . Average 53 | . 56 . Influence Increases 813 | . 533 280 Destroy 0b10 Robot/C 360 | . 240 120 Destroy 0b10 Robot/NC 45 | . 45 . Destroy Leader 86 | . 76 10 Successful Hack 5 | . 5 . Select Force Hacks 60 | . 60 . Disable Machine 15 | . 15 . Destroy Structure 2 | . 2 . Lose Combat Pursuer 240 | . 90 150 Influence Decreases 668 | . 457 211 Entered New Map 37 | . . 37 Time Decay 591 | . 447 144 Lost Part 40 | . 10 30 Squads Dispatched 6 | . 6 . Investigation 4 | . 4 . Extermination . | . . . Reinforcement 2 | . 2 . Assault . | . . . Garrison . | . . . Intercept . | . . . Searches Triggered . | . . . Construction Impeded . | . . . Haulers Reinforced . | . . . Active Scanning Responses . | . . . Cargo Convoy Interrupts . | . . . Stealth | -11 -10 -10 --------- Run | Yrd Mat Sub Distress Signals 1 | . 1 . Communications Jammed . | . . . Distress Signals . | . . . Times Spotted 35 | . 21 14 Peak Tracking Total 4 | . 3 4 Tactical Retreats 11 | . 6 5 Traps | -11 -10 -10 ------- Run | Yrd Mat Sub Traps Triggered 1 | . 1 . Indirectly . | . . . Trap Hack Attempts . | . . . Triggered . | . . . Disarmed . | . . . Reprogrammed . | . . . Reused . | . . . Traps Extracted . | . . . Installed . | . . . Triggered . | . . . Machines | -11 -10 -10 ---------- Run | Yrd Mat Sub Machines Disabled 2 | . 1 1 Max in Single Turn 1 | . 1 1 Machines Repaired . | . . . Machines Dismantled . | . . . Machines Sabotaged . | . . . Overloaded Fab Kills . | . . . Hacking | -11 -10 -10 --------- Run | Yrd Mat Sub Machines Accessed 9 | . 9 . Terminals 6 | . 6 . Fabricators . | . . . Repair Stations 1 | . 1 . Recycling Units 2 | . 2 . Scanalyzers . | . . . Garrison Access . | . . . Total Hacks 19 | . 19 . Successful 13 | . 13 . Failed 6 | . 6 . Catastrophic . | . . . Database Lockouts . | . . . Manual 20 | . 20 . Terminals 16 | . 16 . Fabricators . | . . . Repair Stations 1 | . 1 . Recycling Units 2 | . 2 . Scanalyzers . | . . . Garrison Access . | . . . Terminal Hacks . | . . . Fabricator Hacks . | . . . Repair Station Hacks . | . . . Recycling Unit Hacks . | . . . Scanalyzer . | . . . Garrison Access Hacks . | . . . Unauthorized Hacks 12 | . 12 . Terminals 9 | . 9 . Botnet 4 | . 4 . Skim 5 | . 5 . Fabricators . | . . . Repair Stations 1 | . 1 . Patch 1 | . 1 . Recycling Units 2 | . 2 . Tunnel 2 | . 2 . Scanalyzers . | . . . Garrison Access . | . . . Data Cores Recovered 1 | . 1 . Used . | . . . Hacking Detections 4 | . 4 . Full Trace Events . | . . . Feedback Events . | . . . Feedback Blocked . | . . . Robot Schematics Acquired . | . . . Robots Built . | . . . Authchips . | . . . Time . | . . . Total Robot Build Rating . | . . . Part Schematics Acquired . | . . . Parts Built . | . . . Authchips . | . . . Time . | . . . Total Part Build Rating . | . . . Part Studies Acquired . | . . . Parts Repaired . | . . . Time . | . . . Parts Recycled . | . . . Recycled Matter . | . . . Retrieved Matter . | . . . Retrieved Components . | . . . Parts Scanalyzed . | . . . Part Schematics Acquired . | . . . Parts Damaged . | . . . Bothacking | -11 -10 -10 ------------ Run | Yrd Mat Sub Used RIF Installer . | . . . Robots Hacked . | . . . Non-combat . | . . . Combat . | . . . Robot Hacks Applied . | . . . Relay Couplers Released . | . . . Fabnet Peak Effective % . | . . . Robots Rewired . | . . . Allies Hacked . | . . . Hacks Repelled . | . . . Allies | -11 -10 -10 -------- Run | Yrd Mat Sub Total Allies . | . . . Largest Group . | . . . Highest-Rated Group . | . . . Highest-Rated Ally . | . . . Total Orders . | . . . Ally Attacks . | . . . Total Damage . | . . . Kills . | . . . Allies Corrupted . | . . . Allies Melted . | . . . Intel | -11 -10 -10 ------- Run | Yrd Mat Sub Active Infowar (turns) . | . . . Robot Analysis Total . | . . . Derelict Logs Recovered 1 | . . 1 Drone Launches . | . . . Drone Recoveries . | . . . Exploration | -11 -10 -10 ------------- Run | Yrd Mat Sub Turns Passed 3368 | 76 1439 1853 Spaces Moved 1622 | 42 673 907 Core 2 | 2 . . Treads 1620 | 40 673 907 Legs . | . . . Wheels . | . . . Hover . | . . . Flight . | . . . Fastest Speed 50 | 50 160 160 Average Speed 175 | 154 160 187 Slowest Speed 240 | 160 160 240 Overloaded Moves . | . . . Propulsion Burnouts . | . . . Robots Hopped . | . . . Potential Cave-ins 2 | . . 2 Cave-ins Triggered 1 | . . 1 Exploration Rate (%) 45 | 4 94 37 Regions Visited 2 Branch Regions 1 Pre-discovered Areas 2 | . 2 . Known Exits Taken . | . . . Unknown Exits Taken 2 | 1 1 . Scrap Searched 2 | . . 2 Spaces Dug . | . . . Terrain Destroyed 44 | . . 44 Melee . | . . . Projectile 1 | . . 1 AOE 43 | . . 43 Terrain Rammed . | . . . Walls Destroyed . | . . . Machines Disabled . | . . . Actions | -11 -10 -10 --------- Run | Yrd Mat Sub Total 1933 | 50 908 975 Wait 156 | . 148 8 Move 1619 | 41 672 906 Hop . | . . . Pick Up 10 | 3 7 . Fast Attach 8 | 6 1 1 Attach 3 | . 1 2 Detach 1 | . . 1 Swap 9 | . 4 5 Drop 6 | . 5 1 Fire 115 | . 69 46 Melee . | . . . Ram . | . . . Kick . | . . . Crush 1 | . 1 . Escape Stasis . | . . . Rewire . | . . . Trap . | . . . Miscellaneous 5 | . . 5 Route ------- -11/Scrapyard -10/Materials (discovered 5 exits: [*Mat x3] / [*Min] / [*Sub]) -10/Subcaves (discovered 1 exit: [*Rec]) History --------- Turn | Location | Event 31 | -11/Scrapyard | Discovered new exit (range 16) 77 | -11/Scrapyard | Entered Materials 274 | -10/Materials | Discovered new exit (range 9) 306 | -10/Materials | Build established: Mutant 636 | -10/Materials | Discovered new exit (range 13) 956 | -10/Materials | Discovered new exit (range 3) 1371 | -10/Materials | Discovered new exit (range 16) 1497 | -10/Materials | Discovered new exit (range 13) 1516 | -10/Materials | Entered Subcaves 1517 | -10/Subcaves | Approached by a straggling Scientist 1766 | -10/Subcaves | Shifting Twisted Machinery released Sub. Shrapnel Launcher 2716 | -10/Subcaves | Learned 8 Materials zone layouts 2791 | -10/Subcaves | A swath of the cavern ceiling suddenly collapsed 3026 | -10/Subcaves | Core integrity fell below 50% 3091 | -10/Subcaves | Discovered new exit (range 11) 3369 | -10/Subcaves | Crushed by falling debris 3369 | -10/Subcaves | Smashed by cave-in Last Messages --------------- repair. 03093_ Lgt. Treads destroyed. 03096_ Flight Unit fries itself beyond repair. KZ-MIN(c): "I think it's somewhere south of here" 03098_ KZ-MIN(c) destroyed. 03102_ Subatomizers dissect the Tech Extrapolator. 03106_ Acquired 19 matter. 03109_ Tech Extrapolator violently self-destructs. 03113_ Subatomizers dissect the Wheel. 03257_ The unstable cave ceiling collapses. 03341_ Acquired 52 matter. 03349_ The unstable cave ceiling collapses. 03369_ Crushed by falling debris. 03369_ Battle Cannon destroyed. 03369_ System corrupted by crushing effect (+4). 03369_ Lgt. Treads destroyed. 03369_ System corrupted by crushing effect (+4). Map ----- +----------------------------------------------------+ | ?????????????????????????????????????????????????? | | ?????????????????????????????????????????????????? | | ?????????????????????????????????????????????????? | | ?????????????????????????????????????????????????? | | ?????????????????????????????????????????????????? | | ?????????????????????????????????????????????????? | | ?????????????????????????????????????????????????? | | ?????????????????????????????????????????????????? | | ?????????????????????????????????????????????????? | | ?????????????????????????????????????????????????? | | ?????????????????????????????????????????????????? | | ?????????????????????????????????????????????????? | | ?????????????????????????????????????????????????? | | ?????????????????????????????????????????????????? | | ?????????????????????????????????????????????????? | | ?????????????????????????????????????????????????? | | ?????????????????????????????????????????????????? | | ?????????????????????????????????????????????????? | | ?????????????????????????????????????????????????? | | ????????????????????????????????#????????????????? | | ???????????????????????????#### ?????????????????? | | ??????????????????????????# ??????????????????? | | ????????????????????######< #???????????????????? | | ????????????????????# $ <#???????????????????? | | ???????#####??####?## < <#???????????????????? | | ??????## ##?# ### # @<$#????????????????????? | | ###??## #?# # ###????????????????????? | | #### #?# ##??????????????????????? | | # #?# ##???????????????????????? | | # #?## ##????????????????????????? | | ####??# ##?????????????????????????? | | #?#### #??????????????????????????? | | # ### ## ##??????????????????????????? | | ### #???????????????????????????? | | #######""" ###???????????????????????????? | | ###?????##"#" #?????????????????????????????? | | ?####??? #"""" ##????????????????????????????? | | ###"## #""#"" #????????????????????????????? | | """# #"""#"# ###????????????????????????????? | | #""# #"##"# ##??????????????????????????????? | | ##"### ##?##"####???????????????????????????????? | | #####? ###?##???????????????????????????????????? | | #????? #??????????????????????????????????????? | | #????# ????????????????????????????????????????? | | #??## #?????????????????????????????????????????? | | ??#####??????????????????????????????????????????? | | ###"""#??????????????????????????????????????????? | | #"#"###??????????????????????????????????????????? | | "##"##??????????????????????????????????????????? | | "###??????????????????????????????????????????? | +----------------------------------------------------+ Best States ------------- Heat Dissipation 35 Energy Generation 14 Energy Capacity 160 Matter Stores 300 Matter Capacity 300 Sight Range 16 Terrain Scan Density 10 Armor Coverage 800 Core Shielding 20 Evasion (%) 40 Recoil Reduction 2 Item Schematics ----------------- None Robot Schematics ------------------ None Fabricated ------------ Nothing Repaired ---------- Nothing Studied --------- None Alien Tech Used ----------------- None Achievements -------------- Survival Of The Most Covered Challenges ------------ None Game ------ Seed LaunchThrowingNetwork Manual? 0 Play Time 00:19:05 Cumulative 409.0 hours Start 2025.10.27 @ 12:07:40 End 2025.10.27 @ 12:20:26 Sessions 1 Manual Loads 0 Difficulty Rogue Special Mode None Game No. 323 Rogue 323 Adventurer 0 Explorer 0 Win Type - Total 18 Types 3/2/5/2/0/0/4/1/0/1 Lore% 91 Gallery% 71 Achievement% 46 Wizard Run 0 Options --------- Layout 1 ASCII 0 Keyboard 1 Movement Numpad Keybinds 0 Fullscreen 2 Font 24/Smallcaps Map View 50x35 Zoom Use 0% Tactical HUD 1 Map Filters NONE Filters NONE Steam 1 RUN: b9daa029-46c1-439b-91f2-131244883f66